[Event "Live Chess"]
[Site "Chess.com"]
[Date "2024.06.02"]
[Round "-"]
[White "missedJariChance"]
[Black "Plimsol"]
[Result "0-1"]
[WhiteElo "1365"]
[BlackElo "2393"]
[TimeControl "300"]
[EndTime "8:35:53 PDT"]
[Termination "Plimsol won by resignation"]

1. b3 {[%clk 0:04:54.2]} 1... e6 {[%clk 0:04:58.7]} 2. Bb2 {[%clk 0:04:47.8]}
2... Nf6 {[%clk 0:04:57.8]} 3. e3 {[%clk 0:04:45.8]} 3... b6 {[%clk 0:04:57]} 4.
Nf3 {[%clk 0:04:44.5]} 4... Bb7 {[%clk 0:04:56.4]} 5. Be2 {[%clk 0:04:43.2]}
5... g6 {[%clk 0:04:55.9]} 6. O-O {[%clk 0:04:37.9]} 6... Bg7 {[%clk 0:04:55.2]}
7. c4 {[%clk 0:04:35.2]} 7... O-O {[%clk 0:04:54.2]} 8. d4 {[%clk 0:04:31.2]}
8... d5 {[%clk 0:04:53.3]} 9. cxd5 {[%clk 0:04:24.6]} 9... Nxd5 {[%clk
0:04:51.1]} 10. Nbd2 {[%clk 0:04:22.5]} 10... Nd7 {[%clk 0:04:49.8]} 11. Rc1
{[%clk 0:04:19]} 11... c5 {[%clk 0:04:48.8]} 12. Nc4 {[%clk 0:04:07.4]} 12...
Qe7 {[%clk 0:04:46.3]} 13. dxc5 {[%clk 0:03:58.2]} 13... Bxb2 {[%clk 0:04:43.5]}
14. Nxb2 {[%clk 0:03:56.4]} 14... Nxc5 {[%clk 0:04:42.9]} 15. Nc4 {[%clk
0:03:46.6]} 15... Rac8 {[%clk 0:04:41.5]} 16. Nfe5 {[%clk 0:03:35.4]} 16... Rfd8
{[%clk 0:04:38.2]} 17. Bf3 {[%clk 0:03:24.8]} 17... Nxe3 {[%clk 0:04:31.4]} 18.
Qe2 {[%clk 0:03:15.6]} 18... Nxf1 {[%clk 0:04:29.1]} 19. Rxf1 {[%clk 0:03:12]}
19... f6 {[%clk 0:04:19.5]} 20. Bxb7 {[%clk 0:03:04.6]} 20... Qxb7 {[%clk
0:04:16.8]} 21. Ng4 {[%clk 0:02:59.8]} 21... Kg7 {[%clk 0:04:09.8]} 22. Qe3
{[%clk 0:02:23.9]} 22... g5 {[%clk 0:03:54.5]} 23. Qc3 {[%clk 0:02:16.5]} 23...
Ne4 {[%clk 0:03:49.4]} 24. Qh3 {[%clk 0:02:01.4]} 24... h5 {[%clk 0:03:46.1]}
25. Qxh5 {[%clk 0:01:49.8]} 25... Rh8 {[%clk 0:03:45]} 0-1

[Event "Live Chess"]
[Site "Chess.com"]
[Date "2024.06.02"]
[Round "-"]
[White "TheSmoulderingMaster"]
[Black "CheckThis4"]
[Result "0-1"]
[WhiteElo "1786"]
[BlackElo "2679"]
[TimeControl "300"]
[EndTime "8:35:53 PDT"]
[Termination "CheckThis4 won by resignation"]

1. e4 {[%clk 0:04:55.9]} 1... d5 {[%clk 0:04:59]} 2. exd5 {[%clk 0:04:51.9]}
2... c6 {[%clk 0:04:57.5]} 3. dxc6 {[%clk 0:04:50.5]} 3... Nxc6 {[%clk
0:04:56.7]} 4. Nf3 {[%clk 0:04:48.5]} 4... e5 {[%clk 0:04:55.6]} 5. Bb5 {[%clk
0:04:46.1]} 5... Bd6 {[%clk 0:04:53.8]} 6. d3 {[%clk 0:04:44.5]} 6... Ne7 {[%clk
0:04:52.7]} 7. h3 {[%clk 0:04:40.4]} 7... O-O {[%clk 0:04:50.8]} 8. O-O {[%clk
0:04:39.3]} 8... f5 {[%clk 0:04:47.9]} 9. Bg5 {[%clk 0:04:36.5]} 9... Kh8 {[%clk
0:04:44.7]} 10. Re1 {[%clk 0:04:34.3]} 10... h6 {[%clk 0:04:40.5]} 11. Bxe7
{[%clk 0:04:29.9]} 11... Qxe7 {[%clk 0:04:40.4]} 12. Bxc6 {[%clk 0:04:27.3]}
12... bxc6 {[%clk 0:04:39]} 13. Nd4 {[%clk 0:04:25.6]} 13... Qf6 {[%clk
0:04:33.5]} 14. Nxc6 {[%clk 0:04:22.8]} 14... Bb7 {[%clk 0:04:30.3]} 15. Na5
{[%clk 0:04:17.9]} 15... Bd5 {[%clk 0:04:05.4]} 16. Nc3 {[%clk 0:04:12.5]} 16...
Bf7 {[%clk 0:04:03.3]} 17. Nc4 {[%clk 0:04:07]} 17... Bc7 {[%clk 0:04:00.1]} 18.
Qf3 {[%clk 0:04:02]} 18... e4 {[%clk 0:03:52.3]} 19. dxe4 {[%clk 0:03:54.5]}
19... Bxc4 {[%clk 0:03:49.3]} 20. exf5 {[%clk 0:03:46.3]} 20... Qxf5 {[%clk
0:03:44.1]} 21. Qxf5 {[%clk 0:03:40.2]} 21... Rxf5 {[%clk 0:03:44]} 22. Re7
{[%clk 0:03:34.4]} 22... Bb6 {[%clk 0:03:41.6]} 23. Ne4 {[%clk 0:03:29.3]} 23...
Bd5 {[%clk 0:03:36.5]} 24. Rf1 {[%clk 0:03:24.7]} 24... Raf8 {[%clk 0:03:31.9]}
25. Nd6 {[%clk 0:03:01.8]} 25... Rxf2 {[%clk 0:03:23.9]} 26. Rxf2 {[%clk
0:03:00.7]} 26... Rxf2 {[%clk 0:03:22.6]} 27. Re8+ {[%clk 0:02:53.5]} 27... Kh7
{[%clk 0:03:19.3]} 28. Ne4 {[%clk 0:02:41.6]} 28... Rf8+ {[%clk 0:03:05.8]} 0-1

[Event "Live Chess"]
[Site "Chess.com"]
[Date "2024.06.02"]
[Round "-"]
[White "joellloyd"]
[Black "DarranAS"]
[Result "1-0"]
[WhiteElo "1870"]
[BlackElo "1413"]
[TimeControl "300"]
[EndTime "8:36:06 PDT"]
[Termination "joellloyd won by resignation"]

1. e4 {[%clk 0:04:59.4]} 1... e5 {[%clk 0:04:54.5]} 2. Nf3 {[%clk 0:04:58.3]}
2... Nc6 {[%clk 0:04:52.9]} 3. Bc4 {[%clk 0:04:57.7]} 3... Bc5 {[%clk
0:04:49.3]} 4. b4 {[%clk 0:04:57]} 4... Bxb4 {[%clk 0:04:45.6]} 5. c3 {[%clk
0:04:56.5]} 5... Bc5 {[%clk 0:04:43.7]} 6. d4 {[%clk 0:04:55.9]} 6... exd4
{[%clk 0:04:42.4]} 7. O-O {[%clk 0:04:55.1]} 7... d5 {[%clk 0:04:29.3]} 8. Bxd5
{[%clk 0:04:35.9]} 8... Nge7 {[%clk 0:04:22.8]} 9. cxd4 {[%clk 0:04:31.7]} 9...
Bb6 {[%clk 0:04:13.9]} 10. Qb3 {[%clk 0:04:19.3]} 10... Nxd5 {[%clk 0:03:41]}
11. exd5 {[%clk 0:04:17]} 11... Nxd4 {[%clk 0:03:33.9]} 12. Re1+ {[%clk
0:03:59.9]} 12... Kf8 {[%clk 0:03:32.5]} 13. Nxd4 {[%clk 0:03:51.7]} 13... Bxd4
{[%clk 0:03:30.8]} 14. Qb4+ {[%clk 0:03:49.8]} 14... Qd6 {[%clk 0:03:12.7]} 15.
Qxd4 {[%clk 0:03:46.3]} 15... Bd7 {[%clk 0:03:08.7]} 16. Ba3 {[%clk 0:03:45.2]}
1-0

[Event "Live Chess"]
[Site "Chess.com"]
[Date "2024.06.02"]
[Round "-"]
[White "AlanBstard10"]
[Black "ivan_1968"]
[Result "0-1"]
[WhiteElo "1222"]
[BlackElo "1809"]
[TimeControl "300"]
[EndTime "8:36:36 PDT"]
[Termination "ivan_1968 won by checkmate"]

1. b4 {[%clk 0:04:56.2]} 1... Nf6 {[%clk 0:04:52]} 2. a3 {[%clk 0:04:53.9]} 2...
g6 {[%clk 0:04:51.1]} 3. Bb2 {[%clk 0:04:53.2]} 3... Bg7 {[%clk 0:04:50.8]} 4.
e3 {[%clk 0:04:51.1]} 4... O-O {[%clk 0:04:50.1]} 5. Nc3 {[%clk 0:04:47.7]} 5...
d6 {[%clk 0:04:49.2]} 6. Be2 {[%clk 0:04:46.5]} 6... e5 {[%clk 0:04:47.8]} 7. d4
{[%clk 0:04:43.8]} 7... Nc6 {[%clk 0:04:45.2]} 8. d5 {[%clk 0:04:42.4]} 8... Ne7
{[%clk 0:04:43.7]} 9. e4 {[%clk 0:04:41.1]} 9... Nd7 {[%clk 0:04:41.9]} 10. f3
{[%clk 0:04:39.7]} 10... f5 {[%clk 0:04:40.5]} 11. exf5 {[%clk 0:04:37.5]} 11...
gxf5 {[%clk 0:04:39.1]} 12. Bb5 {[%clk 0:04:20.2]} 12... Nf6 {[%clk 0:04:36.7]}
13. Nge2 {[%clk 0:04:16.2]} 13... a6 {[%clk 0:04:33.2]} 14. Ba4 {[%clk 0:04:13]}
14... b5 {[%clk 0:04:31.4]} 15. Bb3 {[%clk 0:04:11.9]} 15... Qe8 {[%clk
0:04:30.4]} 16. O-O {[%clk 0:04:10.3]} 16... Qg6 {[%clk 0:04:25.6]} 17. Rf2
{[%clk 0:04:07.3]} 17... Bh6 {[%clk 0:04:16.5]} 18. Bc1 {[%clk 0:04:04.2]} 18...
Kh8 {[%clk 0:04:13.6]} 19. Bxh6 {[%clk 0:04:01.1]} 19... Qxh6 {[%clk 0:04:12.2]}
20. Qc1 {[%clk 0:03:57.2]} 20... Qg6 {[%clk 0:04:08.3]} 21. Ng3 {[%clk
0:03:50.6]} 21... Rg8 {[%clk 0:04:02.5]} 22. Qd2 {[%clk 0:03:30.7]} 22... h5
{[%clk 0:04:01.1]} 23. Nce2 {[%clk 0:03:21]} 23... h4 {[%clk 0:03:54.4]} 24. Nh1
{[%clk 0:03:18.3]} 24... f4 {[%clk 0:03:43.9]} 25. c3 {[%clk 0:03:09.7]} 25...
Nf5 {[%clk 0:03:40.7]} 26. Bc2 {[%clk 0:03:07.9]} 26... Qg5 {[%clk 0:03:35.3]}
27. Bxf5 {[%clk 0:03:00.5]} 27... Bxf5 {[%clk 0:03:32.4]} 28. Rd1 {[%clk
0:02:50.3]} 28... Rg7 {[%clk 0:03:24.1]} 29. Nc1 {[%clk 0:02:35.3]} 29... Rag8
{[%clk 0:03:20]} 30. Re1 {[%clk 0:02:31.5]} 30... Bh3 {[%clk 0:03:02.7]} 31. g4
{[%clk 0:02:23.8]} 31... Nxg4 {[%clk 0:02:56.3]} 32. fxg4 {[%clk 0:02:18.4]}
32... Qxg4+ {[%clk 0:02:55]} 33. Rg2 {[%clk 0:02:05.3]} 33... Bxg2 {[%clk
0:02:53.3]} 34. Re2 {[%clk 0:01:58.9]} 34... Bxh1+ {[%clk 0:02:46.2]} 35. Kxh1
{[%clk 0:01:56.7]} 35... Qg1# {[%clk 0:02:44.9]} 0-1

[Event "Live Chess"]
[Site "Chess.com"]
[Date "2024.06.02"]
[Round "-"]
[White "bobby_jamesFischer86"]
[Black "grillage"]
[Result "0-1"]
[WhiteElo "1634"]
[BlackElo "1877"]
[TimeControl "300"]
[EndTime "8:36:36 PDT"]
[Termination "grillage won by resignation"]

1. d4 {[%clk 0:04:57.1]} 1... e6 {[%clk 0:04:58.5]} 2. c4 {[%clk 0:04:55.8]}
2... Bb4+ {[%clk 0:04:55.7]} 3. Bd2 {[%clk 0:04:53.8]} 3... Bxd2+ {[%clk
0:04:54.5]} 4. Nxd2 {[%clk 0:04:52.7]} 4... Nf6 {[%clk 0:04:53]} 5. e4 {[%clk
0:04:51.1]} 5... d6 {[%clk 0:04:52.5]} 6. Ngf3 {[%clk 0:04:49.6]} 6... Qe7
{[%clk 0:04:51.8]} 7. Bd3 {[%clk 0:04:48.4]} 7... e5 {[%clk 0:04:51]} 8. dxe5
{[%clk 0:04:45.3]} 8... dxe5 {[%clk 0:04:50]} 9. Qc2 {[%clk 0:04:44.2]} 9... O-O
{[%clk 0:04:48.2]} 10. O-O {[%clk 0:04:42.6]} 10... Bg4 {[%clk 0:04:44.9]} 11.
h3 {[%clk 0:04:40.6]} 11... Bxf3 {[%clk 0:04:43.5]} 12. Nxf3 {[%clk 0:04:39.4]}
12... Nc6 {[%clk 0:04:41.4]} 13. Qc3 {[%clk 0:04:35.7]} 13... Rad8 {[%clk
0:04:34.3]} 14. Rfd1 {[%clk 0:04:33.8]} 14... Nd4 {[%clk 0:04:32.4]} 15. Nxd4
{[%clk 0:04:21.3]} 15... Rxd4 {[%clk 0:04:30.7]} 16. Qc2 {[%clk 0:04:16.9]}
16... Rfd8 {[%clk 0:04:29]} 17. b3 {[%clk 0:04:08.9]} 17... R8d7 {[%clk
0:04:17.6]} 18. Rd2 {[%clk 0:03:57.8]} 18... Qd8 {[%clk 0:04:15.2]} 19. Rad1
{[%clk 0:03:56]} 19... Nxe4 {[%clk 0:04:00.6]} 20. Bxe4 {[%clk 0:03:49.4]} 20...
Rxd2 {[%clk 0:03:59.5]} 21. Bxh7+ {[%clk 0:03:42]} 21... Kh8 {[%clk 0:03:55.1]}
22. Rxd2 {[%clk 0:03:40.4]} 22... Rxd2 {[%clk 0:03:53.5]} 23. Qf5 {[%clk
0:03:33.8]} 23... Qf6 {[%clk 0:03:37.3]} 24. Qh5 {[%clk 0:03:13.7]} 24... Qxf2+
{[%clk 0:03:34.4]} 0-1

[Event "Live Chess"]
[Site "Chess.com"]
[Date "2024.06.02"]
[Round "-"]
[White "StoreySniper"]
[Black "best137"]
[Result "1-0"]
[WhiteElo "2475"]
[BlackElo "1524"]
[TimeControl "300"]
[EndTime "8:36:44 PDT"]
[Termination "StoreySniper won on time"]

1. d4 {[%clk 0:04:57.3]} 1... d5 {[%clk 0:04:58.6]} 2. c4 {[%clk 0:04:55.9]}
2... c6 {[%clk 0:04:55.7]} 3. Nc3 {[%clk 0:04:52.9]} 3... Nf6 {[%clk 0:04:53.5]}
4. Nf3 {[%clk 0:04:52.4]} 4... Bg4 {[%clk 0:04:51.8]} 5. Bg5 {[%clk 0:04:49.6]}
5... e6 {[%clk 0:04:50.1]} 6. e3 {[%clk 0:04:46]} 6... Be7 {[%clk 0:04:48.7]} 7.
Be2 {[%clk 0:04:44.3]} 7... O-O {[%clk 0:04:47.3]} 8. O-O {[%clk 0:04:43.2]}
8... Nbd7 {[%clk 0:04:45.8]} 9. h3 {[%clk 0:04:32.4]} 9... Bh5 {[%clk
0:04:35.6]} 10. Ne5 {[%clk 0:04:12.1]} 10... Nxe5 {[%clk 0:04:25]} 11. dxe5
{[%clk 0:04:10.7]} 11... Bxe2 {[%clk 0:04:22.2]} 12. Qxe2 {[%clk 0:04:04.9]}
12... Nd7 {[%clk 0:04:20.5]} 13. Bxe7 {[%clk 0:04:01.6]} 13... Qxe7 {[%clk
0:04:20.4]} 14. cxd5 {[%clk 0:03:58.9]} 14... cxd5 {[%clk 0:04:18.3]} 15. f4
{[%clk 0:03:49.3]} 15... a6 {[%clk 0:04:03.8]} 16. e4 {[%clk 0:03:36.8]} 16...
Qc5+ {[%clk 0:03:51]} 17. Qf2 {[%clk 0:03:32.5]} 17... d4 {[%clk 0:03:41.3]} 18.
Ne2 {[%clk 0:03:28.1]} 18... d3 {[%clk 0:03:28.1]} 19. Nc3 {[%clk 0:03:26.4]}
19... Rfd8 {[%clk 0:03:16.5]} 20. Rfd1 {[%clk 0:03:22.6]} 20... Qxf2+ {[%clk
0:03:11.8]} 21. Kxf2 {[%clk 0:03:21.6]} 21... Nc5 {[%clk 0:03:07.6]} 22. b4
{[%clk 0:03:15.4]} 22... Rac8 {[%clk 0:02:41.2]} 23. bxc5 {[%clk 0:03:12.7]}
23... Rxc5 {[%clk 0:02:40.7]} 24. Na4 {[%clk 0:02:42.9]} 24... Rc2+ {[%clk
0:02:26.9]} 25. Kf3 {[%clk 0:02:41.9]} 25... b5 {[%clk 0:02:15.7]} 26. Nb6
{[%clk 0:02:40.6]} 26... a5 {[%clk 0:02:08.8]} 27. Rac1 {[%clk 0:02:33.1]} 27...
Rxa2 {[%clk 0:01:29]} 28. Rc8 {[%clk 0:02:26.9]} 28... Rxc8 {[%clk 0:01:26.8]}
29. Nxc8 {[%clk 0:02:25.9]} 29... d2 {[%clk 0:01:21.8]} 30. Ke3 {[%clk 0:02:20]}
30... b4 {[%clk 0:01:13.8]} 31. Rxd2 {[%clk 0:02:17.7]} 31... Rxd2 {[%clk
0:01:10.7]} 32. Kxd2 {[%clk 0:02:17.6]} 32... a4 {[%clk 0:01:10]} 33. Kc2 {[%clk
0:02:15.9]} 33... a3 {[%clk 0:01:02.4]} 34. Kb3 {[%clk 0:02:14.3]} 34... f6
{[%clk 0:00:59.5]} 35. Na7 {[%clk 0:02:09.7]} 35... Kf7 {[%clk 0:00:52.3]} 36.
Nc6 {[%clk 0:02:07.2]} 36... fxe5 {[%clk 0:00:50.6]} 37. Nxe5+ {[%clk
0:02:02.9]} 37... Kf6 {[%clk 0:00:48.8]} 38. Nd3 {[%clk 0:02:02.2]} 38... g5
{[%clk 0:00:45.6]} 39. g3 {[%clk 0:01:57.9]} 39... h5 {[%clk 0:00:41.9]} 40. h4
{[%clk 0:01:55]} 40... gxh4 {[%clk 0:00:23.6]} 41. gxh4 {[%clk 0:01:53.2]} 41...
Kg6 {[%clk 0:00:17.8]} 42. Nxb4 {[%clk 0:01:51.2]} 42... e5 {[%clk 0:00:15.2]}
43. f5+ {[%clk 0:01:49.6]} 43... Kf6 {[%clk 0:00:13.8]} 44. Nd3 {[%clk
0:01:48.1]} 44... Ke7 {[%clk 0:00:10.2]} 45. Nxe5 {[%clk 0:01:46.3]} 45... Kf6
{[%clk 0:00:09.4]} 46. Nf3 {[%clk 0:01:45.5]} 46... Ke7 {[%clk 0:00:08.2]} 47.
Kxa3 {[%clk 0:01:44.9]} 47... Kf6 {[%clk 0:00:07.4]} 48. Kb4 {[%clk 0:01:44.6]}
48... Kg7 {[%clk 0:00:06.9]} 49. Kc5 {[%clk 0:01:44.3]} 49... Kf7 {[%clk
0:00:06.6]} 50. Kd6 {[%clk 0:01:44]} 50... Ke8 {[%clk 0:00:06.5]} 51. e5 {[%clk
0:01:43.4]} 51... Kf8 {[%clk 0:00:06.4]} 52. e6 {[%clk 0:01:42.8]} 52... Ke8
{[%clk 0:00:06.3]} 53. f6 {[%clk 0:01:42]} 53... Kf8 {[%clk 0:00:06]} 54. Kd7
{[%clk 0:01:41.5]} 54... Kg8 {[%clk 0:00:04.9]} 55. e7 {[%clk 0:01:40.7]} 55...
Kh7 {[%clk 0:00:03.1]} 56. e8=Q {[%clk 0:01:38.9]} 56... Kh6 {[%clk 0:00:01.6]}
57. Qh8+ {[%clk 0:01:37.1]} 57... Kg6 {[%clk 0:00:00.9]} 58. Qg7+ {[%clk
0:01:36.5]} 58... Kf5 {[%clk 0:00:00.4]} 59. Qg5+ {[%clk 0:01:36.1]} 59... Ke4
{[%clk 0:00:00.3]} 60. Qe5+ {[%clk 0:01:35.2]} 60... Kd3 {[%clk 0:00:00.2]} 61.
f7 {[%clk 0:01:34.5]} 61... Kc2 {[%clk 0:00:00.1]} 62. f8=Q {[%clk 0:01:34]} 1-0

[Event "Live Chess"]
[Site "Chess.com"]
[Date "2024.06.02"]
[Round "-"]
[White "willc-h99"]
[Black "CarmelJane"]
[Result "1-0"]
[WhiteElo "2560"]
[BlackElo "2043"]
[TimeControl "300"]
[EndTime "8:36:50 PDT"]
[Termination "willc-h99 won by resignation"]

1. d4 {[%clk 0:04:59.2]} 1... Nf6 {[%clk 0:04:58.3]} 2. Bg5 {[%clk 0:04:58.7]}
2... e6 {[%clk 0:04:56.5]} 3. e4 {[%clk 0:04:58]} 3... h6 {[%clk 0:04:55]} 4.
Bxf6 {[%clk 0:04:57.5]} 4... Qxf6 {[%clk 0:04:54]} 5. c3 {[%clk 0:04:57]} 5...
d6 {[%clk 0:04:53.2]} 6. Bd3 {[%clk 0:04:56.1]} 6... Qg5 {[%clk 0:04:51.8]} 7.
Nf3 {[%clk 0:04:44.6]} 7... Qd8 {[%clk 0:04:46.7]} 8. O-O {[%clk 0:04:40.9]}
8... Nd7 {[%clk 0:04:41]} 9. e5 {[%clk 0:04:39]} 9... d5 {[%clk 0:04:39.9]} 10.
Nfd2 {[%clk 0:04:19.7]} 10... c5 {[%clk 0:04:36.8]} 11. f4 {[%clk 0:04:15.7]}
11... cxd4 {[%clk 0:04:32.7]} 12. cxd4 {[%clk 0:04:14.2]} 12... Nb6 {[%clk
0:04:27.2]} 13. Nc3 {[%clk 0:04:11.2]} 13... Bd7 {[%clk 0:04:26.2]} 14. f5
{[%clk 0:04:07.8]} 14... exf5 {[%clk 0:04:10.2]} 15. Bxf5 {[%clk 0:04:05.2]}
15... Qg5 {[%clk 0:04:03.9]} 16. Bxd7+ {[%clk 0:03:54.2]} 16... Nxd7 {[%clk
0:04:03.8]} 17. Nxd5 {[%clk 0:03:51.7]} 17... Rc8 {[%clk 0:03:55.9]} 18. Ne4
{[%clk 0:03:47.5]} 18... Qh4 {[%clk 0:03:51.8]} 19. Qf3 {[%clk 0:03:40.1]} 1-0

[Event "Live Chess"]
[Site "Chess.com"]
[Date "2024.06.02"]
[Round "-"]
[White "Queensandpawns"]
[Black "beltmanjb"]
[Result "0-1"]
[WhiteElo "2230"]
[BlackElo "1733"]
[TimeControl "300"]
[EndTime "8:37:01 PDT"]
[Termination "beltmanjb won by resignation"]

1. e4 {[%clk 0:04:58.9]} 1... c5 {[%clk 0:04:58.8]} 2. d4 {[%clk 0:04:56.8]}
2... cxd4 {[%clk 0:04:57.4]} 3. c3 {[%clk 0:04:56.7]} 3... dxc3 {[%clk
0:04:56.3]} 4. Bc4 {[%clk 0:04:56.6]} 4... d6 {[%clk 0:04:44.4]} 5. Nf3 {[%clk
0:04:54.6]} 5... Nc6 {[%clk 0:04:43.5]} 6. O-O {[%clk 0:04:52.4]} 6... a6 {[%clk
0:04:41.1]} 7. Nxc3 {[%clk 0:04:51.3]} 7... Nf6 {[%clk 0:04:36.4]} 8. Qb3 {[%clk
0:04:44.6]} 8... e6 {[%clk 0:04:11.6]} 9. Rd1 {[%clk 0:04:40.6]} 9... Na5 {[%clk
0:03:57.4]} 10. Qa4+ {[%clk 0:04:39.2]} 10... Bd7 {[%clk 0:03:46.2]} 11. Qb4
{[%clk 0:04:16.8]} 11... d5 {[%clk 0:03:39.9]} 12. exd5 {[%clk 0:04:05.2]} 12...
Bxb4 {[%clk 0:03:35.6]} 13. dxe6 {[%clk 0:04:05.1]} 13... fxe6 {[%clk
0:03:26.7]} 14. Bxe6 {[%clk 0:04:02.8]} 0-1

[Event "Live Chess"]
[Site "Chess.com"]
[Date "2024.06.02"]
[Round "-"]
[White "FREDERICKtheMATE"]
[Black "jumush"]
[Result "1-0"]
[WhiteElo "2663"]
[BlackElo "1741"]
[TimeControl "300"]
[EndTime "8:37:04 PDT"]
[Termination "FREDERICKtheMATE won by resignation"]

1. e4 {[%clk 0:04:58.1]} 1... d5 {[%clk 0:04:56.1]} 2. exd5 {[%clk 0:04:57]}
2... Qxd5 {[%clk 0:04:52.9]} 3. Nc3 {[%clk 0:04:56.6]} 3... Qa5 {[%clk
0:04:51.1]} 4. d4 {[%clk 0:04:55.8]} 4... Nf6 {[%clk 0:04:49.3]} 5. Nf3 {[%clk
0:04:55.3]} 5... Bf5 {[%clk 0:04:48.2]} 6. Bc4 {[%clk 0:04:54]} 6... e6 {[%clk
0:04:44.8]} 7. Bd2 {[%clk 0:04:52]} 7... Bb4 {[%clk 0:04:42.6]} 8. a3 {[%clk
0:04:50]} 8... Bxc3 {[%clk 0:04:41.3]} 9. Bxc3 {[%clk 0:04:49.9]} 9... Qb6
{[%clk 0:04:40.2]} 10. O-O {[%clk 0:04:47.5]} 10... Nc6 {[%clk 0:04:38]} 11. a4
{[%clk 0:04:40.7]} 11... a5 {[%clk 0:04:33.8]} 12. Ne5 {[%clk 0:04:36.1]} 12...
Nxe5 {[%clk 0:04:24.6]} 13. dxe5 {[%clk 0:04:36]} 13... Rd8 {[%clk 0:04:22]} 14.
Qe1 {[%clk 0:04:26.7]} 14... Nd7 {[%clk 0:04:09.9]} 15. Bb5 {[%clk 0:04:01.5]}
15... c6 {[%clk 0:04:06.4]} 16. Bxa5 {[%clk 0:03:59.8]} 16... Qc5 {[%clk
0:04:01.8]} 17. Bxd8 {[%clk 0:03:58.6]} 17... cxb5 {[%clk 0:04:00]} 18. axb5
{[%clk 0:03:56.2]} 18... Kxd8 {[%clk 0:03:57.6]} 19. Ra8+ {[%clk 0:03:54.3]}
19... Ke7 {[%clk 0:03:54.6]} 20. Rxh8 {[%clk 0:03:53.1]} 20... Qxc2 {[%clk
0:03:50.3]} 21. Qb4+ {[%clk 0:03:49.9]} 1-0

[Event "Live Chess"]
[Site "Chess.com"]
[Date "2024.06.02"]
[Round "-"]
[White "elephantgerrald"]
[Black "educatedlad"]
[Result "1-0"]
[WhiteElo "897"]
[BlackElo "1734"]
[TimeControl "300"]
[EndTime "8:37:13 PDT"]
[Termination "elephantgerrald won by resignation"]

1. e4 {[%clk 0:04:47.5]} 1... c5 {[%clk 0:04:59.9]} 2. Nf3 {[%clk 0:04:46.4]}
2... e6 {[%clk 0:04:59.8]} 3. Bc4 {[%clk 0:04:43.5]} 3... Nc6 {[%clk 0:04:59.7]}
4. O-O {[%clk 0:04:42.4]} 4... Nf6 {[%clk 0:04:59.6]} 5. Nc3 {[%clk 0:04:40.9]}
5... Be7 {[%clk 0:04:59.5]} 6. d3 {[%clk 0:04:39.7]} 6... O-O {[%clk 0:04:59.4]}
7. Bf4 {[%clk 0:04:38.1]} 7... a6 {[%clk 0:04:59.3]} 8. h3 {[%clk 0:04:36.1]}
8... b5 {[%clk 0:04:58.8]} 9. Bb3 {[%clk 0:04:33.8]} 9... b4 {[%clk 0:04:54.3]}
10. Na4 {[%clk 0:04:30.9]} 10... Bb7 {[%clk 0:04:52.1]} 11. c3 {[%clk
0:04:24.3]} 11... bxc3 {[%clk 0:04:50.5]} 12. Nxc3 {[%clk 0:04:15.5]} 12... d5
{[%clk 0:04:50.4]} 13. exd5 {[%clk 0:04:14.5]} 13... Nxd5 {[%clk 0:04:50.3]} 14.
Bxd5 {[%clk 0:04:13.3]} 14... exd5 {[%clk 0:04:49.4]} 15. d4 {[%clk 0:04:10.6]}
15... cxd4 {[%clk 0:04:48.2]} 16. Nxd4 {[%clk 0:04:09.9]} 16... Nxd4 {[%clk
0:04:47.3]} 17. Qxd4 {[%clk 0:04:09]} 17... Bf6 {[%clk 0:04:46.9]} 18. Qd3
{[%clk 0:04:06.7]} 18... Bxc3 {[%clk 0:04:45.1]} 19. Qxc3 {[%clk 0:04:04.2]}
19... Qf6 {[%clk 0:04:43.7]} 20. Qg3 {[%clk 0:03:57.4]} 20... Qxb2 {[%clk
0:04:37]} 21. Be5 {[%clk 0:03:53.6]} 21... Qxe5 {[%clk 0:04:28.2]} 1-0

[Event "Live Chess"]
[Site "Chess.com"]
[Date "2024.06.02"]
[Round "-"]
[White "GwaryTek"]
[Black "JanMur7"]
[Result "1-0"]
[WhiteElo "1902"]
[BlackElo "2271"]
[TimeControl "300"]
[EndTime "8:37:21 PDT"]
[Termination "GwaryTek won by checkmate"]

1. d4 {[%clk 0:04:57.5]} 1... Nf6 {[%clk 0:04:59]} 2. c4 {[%clk 0:04:56.4]} 2...
a6 {[%clk 0:04:58.5]} 3. Nf3 {[%clk 0:04:54.6]} 3... b5 {[%clk 0:04:57.4]} 4.
cxb5 {[%clk 0:04:53]} 4... axb5 {[%clk 0:04:57.3]} 5. g3 {[%clk 0:04:50.4]} 5...
Bb7 {[%clk 0:04:56.5]} 6. Bg2 {[%clk 0:04:49.9]} 6... b4 {[%clk 0:04:54.9]} 7.
O-O {[%clk 0:04:46.9]} 7... e6 {[%clk 0:04:53.8]} 8. Re1 {[%clk 0:04:43.4]} 8...
Be7 {[%clk 0:04:52.2]} 9. Bd2 {[%clk 0:04:25.6]} 9... O-O {[%clk 0:04:49.3]} 10.
Qc2 {[%clk 0:04:10]} 10... d5 {[%clk 0:04:45.2]} 11. Rc1 {[%clk 0:04:01.8]}
11... Bd6 {[%clk 0:04:37.6]} 12. Bf4 {[%clk 0:03:52.9]} 12... Nc6 {[%clk
0:04:30.6]} 13. Nbd2 {[%clk 0:03:41.5]} 13... Bxf4 {[%clk 0:04:15.8]} 14. gxf4
{[%clk 0:03:41.4]} 14... Rc8 {[%clk 0:04:12.3]} 15. Nb3 {[%clk 0:03:36.3]} 15...
Qd6 {[%clk 0:04:09.6]} 16. e3 {[%clk 0:03:34.1]} 16... Ba6 {[%clk 0:04:07]} 17.
Nc5 {[%clk 0:03:31.1]} 17... Bb5 {[%clk 0:04:03.8]} 18. Bf1 {[%clk 0:02:28.2]}
18... Bxf1 {[%clk 0:04:00.9]} 19. Kxf1 {[%clk 0:02:28.1]} 19... Na5 {[%clk
0:03:46.2]} 20. Ne5 {[%clk 0:02:22]} 20... Nc6 {[%clk 0:03:27.4]} 21. Nb7 {[%clk
0:02:14.1]} 21... Nxd4 {[%clk 0:03:20.1]} 22. Nxd6 {[%clk 0:01:53.8]} 22... Nxc2
{[%clk 0:03:16.9]} 23. Nxc8 {[%clk 0:01:47.3]} 23... Nxa1 {[%clk 0:03:11.9]} 24.
Ne7+ {[%clk 0:01:39.8]} 24... Kh8 {[%clk 0:03:09.9]} 25. Rxa1 {[%clk 0:01:34.1]}
25... c5 {[%clk 0:03:09.2]} 26. a4 {[%clk 0:01:23.7]} 26... Ne4 {[%clk
0:03:02.4]} 27. a5 {[%clk 0:01:19.1]} 27... Nd2+ {[%clk 0:03:00.5]} 28. Ke2
{[%clk 0:00:40.8]} 28... Nb3 {[%clk 0:02:59.5]} 29. Ra4 {[%clk 0:00:37.3]} 29...
c4 {[%clk 0:02:33.7]} 30. a6 {[%clk 0:00:28.4]} 30... Nc5 {[%clk 0:02:32.9]} 31.
Ra5 {[%clk 0:00:23.3]} 31... Nb3 {[%clk 0:02:28.4]} 32. a7 {[%clk 0:00:13.4]}
32... Nxa5 {[%clk 0:02:27]} 33. a8=Q {[%clk 0:00:12]} 33... h5 {[%clk
0:02:15.1]} 34. Qxf8+ {[%clk 0:00:08.6]} 34... Kh7 {[%clk 0:02:15]} 35. Qxf7
{[%clk 0:00:06.2]} 35... Kh8 {[%clk 0:02:14.9]} 36. Qg6 {[%clk 0:00:01.5]} 36...
d4 {[%clk 0:02:12.3]} 37. Nf7# {[%clk 0:00:00.7]} 1-0